Workbook

Sheet Sheet1
A1: State | B1: 2011 | C1: 2012 | D1: 2013 | E1: 2014 | G1: State | H1: 2011 | I1: 2012 | J1: 2013 | K1: 2014
A2: Texas | B2: 35443672.4 | C2: 33741920.96 | D2: 32546249.78 | E2: 35731843.14 | G2: Texas | H2: 35443672.4 | I2: 33741920.96 | J2: 32546249.78 | K2: 35731843.14
A3: North Carolina | B3: 27674230.52 | C3: 23177294.39 | D3: 19515039.67 | E3: 20366564.57 | G3: North Carolina | H3: 27674230.52 | I3: 23177294.39 | J3: 19515039.67 | K3: 20366564.57
A4: New York | B4: 15157128.02 | C4: 8925318.23 | D4: 7323069.392 | E4: 10405515.64 | G4: New York | H4: 15157128.02 | I4: 8925318.23 | J4: 7323069.392 | K4: 10405515.64
A5: Illinois | B5: 5680177.957 | C5: 8280447.258 | D5: 9681824.596 | E5: 12642449.81 | G5: Illinois | H5: 5680177.957 | I5: 8280447.258 | J5: 9681824.596 | K5: 12642449.81
A6: West Virginia | B6: 5680177.957 | C6: 8280447.258 | D6: 9681824.596 | E6: 12642449.81 | G6: West Virginia | H6: 5680177.957 | I6: 8280447.258 | J6: 9681824.596 | K6: 12642449.81
A7: South Carolina | B7: 4624285.078 | C7: 5810506.284 | D7: 6171261.91 | E7: 9606053.273 | G7: South Carolina | H7: 4624285.078 | I7: 5810506.284 | J7: 6171261.91 | K7: 9606053.273
A8: California | B8: 11560712.7 | C8: 14526265.71 | D8: 15428154.78 | E8: 16515133.18 | G8: California | H8: 11560712.7 | I8: 14526265.71 | J8: 15428154.78 | K8: 16515133.18

Sheet Sheet2
A1: Transaction # | B1: State | C1: Date | D1: Item | E1: Wholesale Price | F1: Units Sold | G1: Total Price | I1: Row Labels | J1: Sum of Wholesale Price | K1: Sum of Total Price
A2: 0 | B2: Florida | C2: 2011-05-28 | D2: Bike Rack | E2: 199 | F2: 2 | G2: =E2*F2 -> 398 | I2: Alabama
A3: 1 | B3: Alabama | C3: 2011-05-16 | D3: Headlamp | E3: 39.99 | F3: 2 | G3: =E3*F3 -> 79.98 | I3: Backpack | J3: 9162.04 | K3: 14124.92
A4: 2 | B4: Alabama | C4: 2011-05-19 | D4: Bike Helmet | E4: 58.5 | F4: 1 | G4: =E4*F4 -> 58.5 | I4: Bicycle | J4: 21479.95 | K4: 33893.84
A5: 3 | B5: Alabama | C5: 2011-05-13 | D5: Headlamp | E5: 39.99 | F5: 1 | G5: =E5*F5 -> 39.99 | I5: Bike Helmet | J5: 8849.92 | K5: 27631.75
A6: 4 | B6: Florida | C6: 2011-05-06 | D6: Bike Rack | E6: 199 | F6: 3 | G6: =E6*F6 -> 597 | I6: Bike Rack | J6: 13753 | K6: 48178
A7: 5 | B7: Georgia | C7: 2011-05-21 | D7: Backpack | E7: 98.77 | F7: 1 | G7: =E7*F7 -> 98.77 | I7: Headlamp | J7: 2589.73 | K7: 7146.35
A8: 6 | B8: Georgia | C8: 2011-05-05 | D8: Backpack | E8: 98.77 | F8: 1 | G8: =E8*F8 -> 98.77 | I8: Florida
A9: 7 | B9: Florida | C9: 2011-05-01 | D9: Bicycle | E9: 415.75 | F9: 2 | G9: =E9*F9 -> 831.5 | I9: Backpack | J9: 11642.73 | K9: 18067.27
A10: 8 | B10: Florida | C10: 2011-05-05 | D10: Backpack | E10: 180.5 | F10: 1 | G10: =E10*F10 -> 180.5 | I10: Bicycle | J10: 17680.87 | K10: 24478.59
A11: 9 | B11: Florida | C11: 2011-05-04 | D11: Bicycle | E11: 415.75 | F11: 1 | G11: =E11*F11 -> 415.75 | I11: Bike Helmet | J11: 8036.39 | K11: 25961.65
A12: 10 | B12: Florida | C12: 2011-05-12 | D12: Backpack | E12: 220.3 | F12: 1 | G12: =E12*F12 -> 220.3 | I12: Bike Rack | J12: 14740 | K12: 49912
A13: 11 | B13: Florida | C13: 2011-05-04 | D13: Headlamp | E13: 39.99 | F13: 4 | G13: =E13*F13 -> 159.96 | I13: Headlamp | J13: 3091.79 | K13: 8449.48
A14: 12 | B14: Georgia | C14: 2011-05-27 | D14: Backpack | E14: 98.77 | F14: 1 | G14: =E14*F14 -> 98.77 | I14: Georgia
A15: 13 | B15: Georgia | C15: 2011-05-04 | D15: Bicycle | E15: 415.75 | F15: 1 | G15: =E15*F15 -> 415.75 | I15: Backpack | J15: 8348.16 | K15: 11344.84
A16: 14 | B16: Georgia | C16: 2011-05-16 | D16: Backpack | E16: 98.77 | F16: 1 | G16: =E16*F16 -> 98.77 | I16: Bicycle | J16: 28322.97 | K16: 43688.12
A17: 15 | B17: Georgia | C17: 2011-05-20 | D17: Backpack | E17: 98.77 | F17: 2 | G17: =E17*F17 -> 197.54 | I17: Bike Helmet | J17: 8234.44 | K17: 25395.27
A18: 16 | B18: Florida | C18: 2011-05-05 | D18: Bicycle | E18: 415.75 | F18: 2 | G18: =E18*F18 -> 831.5 | I18: Bike Rack | J18: 14627 | K18: 52651
A19: 17 | B19: Georgia | C19: 2011-05-01 | D19: Bicycle | E19: 415.75 | F19: 2 | G19: =E19*F19 -> 831.5 | I19: Headlamp | J19: 2199.66 | K19: 5555.11
A20: 18 | B20: Georgia | C20: 2011-05-18 | D20: Bike Rack | E20: 199 | F20: 2 | G20: =E20*F20 -> 398 | I20: Reflectors | J20: 13.99 | K20: 27.98
A21: 19 | B21: Florida | C21: 2011-05-30 | D21: Backpack | E21: 220.3 | F21: 2 | G21: =E21*F21 -> 440.6 | I21: Grand Total | J21: 172772.64 | K21: 396506.17
A22: 20 | B22: Florida | C22: 2011-05-07 | D22: Bike Rack | E22: 199 | F22: 3 | G22: =E22*F22 -> 597
A23: 21 | B23: Georgia | C23: 2011-05-03 | D23: Bicycle | E23: 415.75 | F23: 1 | G23: =E23*F23 -> 415.75
A24: 22 | B24: Georgia | C24: 2011-05-19 | D24: Bicycle | E24: 415.75 | F24: 1 | G24: =E24*F24 -> 415.75
A25: 23 | B25: Alabama | C25: 2011-05-23 | D25: Bike Rack | E25: 199 | F25: 1 | G25: =E25*F25 -> 199
A26: 24 | B26: Florida | C26: 2011-05-07 | D26: Bike Rack | E26: 199 | F26: 3 | G26: =E26*F26 -> 597
A27: 25 | B27: Alabama | C27: 2011-05-06 | D27: Backpack | E27: 220.3 | F27: 2 | G27: =E27*F27 -> 440.6
A28: 26 | B28: Florida | C28: 2011-05-22 | D28: Backpack | E28: 220.3 | F28: 2 | G28: =E28*F28 -> 440.6
A29: 27 | B29: Florida | C29: 2011-05-01 | D29: Headlamp | E29: 39.99 | F29: 3 | G29: =E29*F29 -> 119.97
A30: 28 | B30: Alabama | C30: 2011-05-29 | D30: Bike Helmet | E30: 58.5 | F30: 5 | G30: =E30*F30 -> 292.5
A31: 29 | B31: Alabama | C31: 2011-05-15 | D31: Backpack | E31: 220.3 | F31: 2 | G31: =E31*F31 -> 440.6
A32: 30 | B32: Alabama | C32: 2011-05-20 | D32: Bike Helmet | E32: 58.5 | F32: 3 | G32: =E32*F32 -> 175.5
A33: 31 | B33: Georgia | C33: 2011-05-18 | D33: Bicycle | E33: 415.75 | F33: 1 | G33: =E33*F33 -> 415.75
A34: 32 | B34: Florida | C34: 2011-05-06 | D34: Bike Helmet | E34: 58.5 | F34: 1 | G34: =E34*F34 -> 58.5
A35: 33 | B35: Georgia | C35: 2011-05-25 | D35: Bike Helmet | E35: 58.5 | F35: 2 | G35: =E35*F35 -> 117
A36: 34 | B36: Georgia | C36: 2011-05-26 | D36: Bike Helmet | E36: 58.5 | F36: 2 | G36: =E36*F36 -> 117
A37: 35 | B37: Florida | C37: 2011-05-08 | D37: Bike Helmet | E37: 58.5 | F37: 1 | G37: =E37*F37 -> 58.5
A38: 36 | B38: Alabama | C38: 2011-05-26 | D38: Backpack | E38: 220.3 | F38: 1 | G38: =E38*F38 -> 220.3
A39: 37 | B39: Georgia | C39: 2011-05-04 | D39: Backpack | E39: 98.77 | F39: 1 | G39: =E39*F39 -> 98.77
A40: 38 | B40: Florida | C40: 2011-05-27 | D40: Bike Helmet | E40: 58.5 | F40: 1 | G40: =E40*F40 -> 58.5
A41: 39 | B41: Georgia | C41: 2011-05-12 | D41: Bicycle | E41: 415.75 | F41: 1 | G41: =E41*F41 -> 415.75
A42: 40 | B42: Georgia | C42: 2011-05-10 | D42: Bicycle | E42: 415.75 | F42: 1 | G42: =E42*F42 -> 415.75
A43: 41 | B43: Alabama | C43: 2011-05-10 | D43: Headlamp | E43: 39.99 | F43: 3 | G43: =E43*F43 -> 119.97
A44: 42 | B44: Alabama | C44: 2011-05-07 | D44: Backpack | E44: 220.3 | F44: 1 | G44: =E44*F44 -> 220.3
A45: 43 | B45: Georgia | C45: 2011-05-27 | D45: Headlamp | E45: 39.99 | F45: 4 | G45: =E45*F45 -> 159.96
A46: 44 | B46: Florida | C46: 2011-05-04 | D46: Backpack | E46: 220.3 | F46: 1 | G46: =E46*F46 -> 220.3
A47: 45 | B47: Georgia | C47: 2011-05-02 | D47: Bicycle | E47: 415.75 | F47: 1 | G47: =E47*F47 -> 415.75
A48: 46 | B48: Florida | C48: 2011-05-12 | D48: Bicycle | E48: 415.75 | F48: 1 | G48: =E48*F48 -> 415.75
A49: 47 | B49: Florida | C49: 2011-05-30 | D49: Bike Helmet | E49: 58.5 | F49: 3 | G49: =E49*F49 -> 175.5
A50: 48 | B50: Georgia | C50: 2011-05-09 | D50: Bicycle | E50: 415.75 | F50: 2 | G50: =E50*F50 -> 831.5
A51: 49 | B51: Georgia | C51: 2011-05-23 | D51: Headlamp | E51: 39.99 | F51: 4 | G51: =E51*F51 -> 159.96
A52: 50 | B52: Alabama | C52: 2011-05-09 | D52: Bike Helmet | E52: 58.5 | F52: 3 | G52: =E52*F52 -> 175.5
A53: 51 | B53: Alabama | C53: 2011-05-05 | D53: Headlamp | E53: 39.99 | F53: 4 | G53: =E53*F53 -> 159.96
A54: 52 | B54: Georgia | C54: 2011-05-04 | D54: Bike Helmet | E54: 58.5 | F54: 1 | G54: =E54*F54 -> 58.5
A55: 53 | B55: Georgia | C55: 2011-05-14 | D55: Headlamp | E55: 39.99 | F55: 2 | G55: =E55*F55 -> 79.98
A56: 54 | B56: Florida | C56: 2011-05-24 | D56: Bike Helmet | E56: 58.5 | F56: 4 | G56: =E56*F56 -> 234
A57: 55 | B57: Florida | C57: 2011-05-22 | D57: Backpack | E57: 220.3 | F57: 1 | G57: =E57*F57 -> 220.3
A58: 56 | B58: Alabama | C58: 2011-05-19 | D58: Bike Rack | E58: 199 | F58: 4 | G58: =E58*F58 -> 796
A59: 57 | B59: Georgia | C59: 2011-05-28 | D59: Bicycle | E59: 415.75 | F59: 1 | G59: =E59*F59 -> 415.75
A60: 58 | B60: Alabama | C60: 2011-05-10 | D60: Bike Helmet | E60: 58.5 | F60: 2 | G60: =E60*F60 -> 117
A61: 59 | B61: Georgia | C61: 2011-05-08 | D61: Headlamp | E61: 39.99 | F61: 1 | G61: =E61*F61 -> 39.99
A62: 60 | B62: Georgia | C62: 2011-05-05 | D62: Backpack | E62: 98.77 | F62: 1 | G62: =E62*F62 -> 98.77
A63: 61 | B63: Georgia | C63: 2011-05-04 | D63: Bicycle | E63: 415.75 | F63: 2 | G63: =E63*F63 -> 831.5
A64: 62 | B64: Alabama | C64: 2011-05-13 | D64: Headlamp | E64: 39.99 | F64: 4 | G64: =E64*F64 -> 159.96
A65: 63 | B65: Alabama | C65: 2011-05-04 | D65: Backpack | E65: 220.3 | F65: 1 | G65: =E65*F65 -> 220.3
A66: 64 | B66: Alabama | C66: 2011-05-21 | D66: Bike Helmet | E66: 58.5 | F66: 3 | G66: =E66*F66 -> 175.5
A67: 65 | B67: Georgia | C67: 2011-05-09 | D67: Bike Helmet | E67: 58.5 | F67: 5 | G67: =E67*F67 -> 292.5
A68: 66 | B68: Georgia | C68: 2011-05-24 | D68: Headlamp | E68: 39.99 | F68: 1 | G68: =E68*F68 -> 39.99
A69: 67 | B69: Alabama | C69: 2011-05-14 | D69: Backpack | E69: 220.3 | F69: 2 | G69: =E69*F69 -> 440.6
A70: 68 | B70: Georgia | C70: 2011-05-07 | D70: Bike Rack | E70: 199 | F70: 2 | G70: =E70*F70 -> 398
A71: 69 | B71: Georgia | C71: 2011-05-09 | D71: Bike Helmet | E71: 58.5 | F71: 4 | G71: =E71*F71 -> 234
A72: 70 | B72: Florida | C72: 2011-05-01 | D72: Bike Rack | E72: 199 | F72: 6 | G72: =E72*F72 -> 1194
A73: 71 | B73: Georgia | C73: 2011-05-23 | D73: Backpack | E73: 98.77 | F73: 1 | G73: =E73*F73 -> 98.77
A74: 72 | B74: Georgia | C74: 2011-05-29 | D74: Bike Helmet | E74: 58.5 | F74: 1 | G74: =E74*F74 -> 58.5
A75: 73 | B75: Alabama | C75: 2011-05-21 | D75: Bike Helmet | E75: 58.5 | F75: 5 | G75: =E75*F75 -> 292.5
A76: 74 | B76: Georgia | C76: 2011-05-03 | D76: Backpack | E76: 98.77 | F76: 2 | G76: =E76*F76 -> 197.54
A77: 75 | B77: Georgia | C77: 2011-05-07 | D77: Headlamp | E77: 39.99 | F77: 1 | G77: =E77*F77 -> 39.99
A78: 76 | B78: Georgia | C78: 2011-04-30 | D78: Bicycle | E78: 415.75 | F78: 1 | G78: =E78*F78 -> 415.75
A79: 77 | B79: Georgia | C79: 2011-05-04 | D79: Bike Helmet | E79: 58.5 | F79: 1 | G79: =E79*F79 -> 58.5
A80: 78 | B80: Georgia | C80: 2011-05-18 | D80: Backpack | E80: 98.77 | F80: 2 | G80: =E80*F80 -> 197.54
A81: 79 | B81: Georgia | C81: 2011-05-04 | D81: Headlamp | E81: 39.99 | F81: 4 | G81: =E81*F81 -> 159.96
A82: 80 | B82: Alabama | C82: 2011-05-03 | D82: Bike Helmet | E82: 99 | F82: 2 | G82: =E82*F82 -> 198
A83: 81 | B83: Florida | C83: 2011-05-25 | D83: Headlamp | E83: 39.99 | F83: 2 | G83: =E83*F83 -> 79.98
A84: 82 | B84: Florida | C84: 2011-05-09 | D84: Bike Rack | E84: 199 | F84: 4 | G84: =E84*F84 -> 796
A85: 83 | B85: Georgia | C85: 2011-04-30 | D85: Bike Rack | E85: 199 | F85: 1 | G85: =E85*F85 -> 199
A86: 84 | B86: Alabama | C86: 2011-05-07 | D86: Backpack | E86: 220.3 | F86: 1 | G86: =E86*F86 -> 220.3
A87: 85 | B87: Georgia | C87: 2011-04-30 | D87: Bicycle | E87: 415.75 | F87: 1 | G87: =E87*F87 -> 415.75
A88: 86 | B88: Georgia | C88: 2011-05-14 | D88: Bike Helmet | E88: 99 | F88: 5 | G88: =E88*F88 -> 495
A89: 87 | B89: Georgia | C89: 2011-05-04 | D89: Bike Rack | E89: 199 | F89: 5 | G89: =E89*F89 -> 995
A90: 88 | B90: Alabama | C90: 2011-05-21 | D90: Backpack | E90: 220.3 | F90: 1 | G90: =E90*F90 -> 220.3
A91: 89 | B91: Georgia | C91: 2011-05-09 | D91: Headlamp | E91: 39.99 | F91: 2 | G91: =E91*F91 -> 79.98
A92: 90 | B92: Georgia | C92: 2011-05-03 | D92: Bike Helmet | E92: 99 | F92: 1 | G92: =E92*F92 -> 99
A93: 91 | B93: Alabama | C93: 2011-05-20 | D93: Backpack | E93: 220.3 | F93: 1 | G93: =E93*F93 -> 220.3
A94: 92 | B94: Florida | C94: 2011-05-09 | D94: Bicycle | E94: 415.75 | F94: 2 | G94: =E94*F94 -> 831.5
A95: 93 | B95: Alabama | C95: 2011-05-30 | D95: Bicycle | E95: 415.75 | F95: 2 | G95: =E95*F95 -> 831.5
A96: 94 | B96: Georgia | C96: 2011-05-12 | D96: Bike Helmet | E96: 99 | F96: 1 | G96: =E96*F96 -> 99
A97: 95 | B97: Georgia | C97: 2011-05-20 | D97: Bike Rack | E97: 199 | F97: 5 | G97: =E97*F97 -> 995
A98: 96 | B98: Georgia | C98: 2011-05-24 | D98: Bike Helmet | E98: 99 | F98: 5 | G98: =E98*F98 -> 495
A99: 97 | B99: Alabama | C99: 2011-05-04 | D99: Headlamp | E99: 39.99 | F99: 3 | G99: =E99*F99 -> 119.97
A100: 98 | B100: Alabama | C100: 2011-05-06 | D100: Bike Helmet | E100: 99 | F100: 3 | G100: =E100*F100 -> 297
A101: 99 | B101: Florida | C101: 2011-04-30 | D101: Bicycle | E101: 415.75 | F101: 2 | G101: =E101*F101 -> 831.5
A102: 100 | B102: Alabama | C102: 2011-05-03 | D102: Headlamp | E102: 39.99 | F102: 3 | G102: =E102*F102 -> 119.97
A103: 101 | B103: Alabama | C103: 2011-05-25 | D103: Bicycle | E103: 415.75 | F103: 2 | G103: =E103*F103 -> 831.5
A104: 102 | B104: Alabama | C104: 2011-05-12 | D104: Bike Rack | E104: 199 | F104: 5 | G104: =E104*F104 -> 995
A105: 103 | B105: Alabama | C105: 2011-05-12 | D105: Bicycle | E105: 415.75 | F105: 1 | G105: =E105*F105 -> 415.75
A106: 104 | B106: Alabama | C106: 2011-05-04 | D106: Headlamp | E106: 39.99 | F106: 2 | G106: =E106*F106 -> 79.98
A107: 105 | B107: Georgia | C107: 2011-05-16 | D107: Backpack | E107: 98.77 | F107: 2 | G107: =E107*F107 -> 197.54
A108: 106 | B108: Florida | C108: 2011-05-26 | D108: Headlamp | E108: 39.99 | F108: 3 | G108: =E108*F108 -> 119.97
A109: 107 | B109: Florida | C109: 2011-05-25 | D109: Headlamp | E109: 39.99 | F109: 1 | G109: =E109*F109 -> 39.99
A110: 108 | B110: Florida | C110: 2011-05-18 | D110: Bike Rack | E110: 199 | F110: 1 | G110: =E110*F110 -> 199
A111: 109 | B111: Georgia | C111: 2011-05-09 | D111: Bike Rack | E111: 199 | F111: 4 | G111: =E111*F111 -> 796
A112: 110 | B112: Florida | C112: 2011-05-09 | D112: Bicycle | E112: 415.75 | F112: 2 | G112: =E112*F112 -> 831.5
A113: 111 | B113: Florida | C113: 2011-05-29 | D113: Headlamp | E113: 39.99 | F113: 4 | G113: =E113*F113 -> 159.96
A114: 112 | B114: Alabama | C114: 2011-05-14 | D114: Backpack | E114: 220.3 | F114: 2 | G114: =E114*F114 -> 440.6
A115: 113 | B115: Florida | C115: 2011-05-06 | D115: Bike Rack | E115: 199 | F115: 5 | G115: =E115*F115 -> 995
A116: 114 | B116: Alabama | C116: 2011-05-28 | D116: Headlamp | E116: 39.99 | F116: 4 | G116: =E116*F116 -> 159.96
A117: 115 | B117: Florida | C117: 2011-05-18 | D117: Backpack | E117: 220.3 | F117: 2 | G117: =E117*F117 -> 440.6
A118: 116 | B118: Alabama | C118: 2011-05-26 | D118: Bike Helmet | E118: 99 | F118: 4 | G118: =E118*F118 -> 396
A119: 117 | B119: Alabama | C119: 2011-05-14 | D119: Headlamp | E119: 39.99 | F119: 4 | G119: =E119*F119 -> 159.96
A120: 118 | B120: Florida | C120: 2011-05-20 | D120: Bike Rack | E120: 269 | F120: 3 | G120: =E120*F120 -> 807
A121: 119 | B121: Georgia | C121: 2011-05-27 | D121: Headlamp | E121: 39.99 | F121: 4 | G121: =E121*F121 -> 159.96
A122: 120 | B122: Georgia | C122: 2011-05-17 | D122: Bike Helmet | E122: 99 | F122: 2 | G122: =E122*F122 -> 198
A123: 121 | B123: Florida | C123: 2011-05-15 | D123: Backpack | E123: 220.3 | F123: 2 | G123: =E123*F123 -> 440.6
A124: 122 | B124: Georgia | C124: 2011-05-09 | D124: Bike Rack | E124: 269 | F124: 2 | G124: =E124*F124 -> 538
A125: 123 | B125: Florida | C125: 2011-05-24 | D125: Bike Helmet | E125: 99 | F125: 1 | G125: =E125*F125 -> 99
A126: 124 | B126: Georgia | C126: 2011-05-22 | D126: Bike Rack | E126: 269 | F126: 5 | G126: =E126*F126 -> 1345
A127: 125 | B127: Alabama | C127: 2011-05-30 | D127: Bike Rack | E127: 269 | F127: 6 | G127: =E127*F127 -> 1614
A128: 126 | B128: Georgia | C128: 2011-05-04 | D128: Bicycle | E128: 415.75 | F128: 1 | G128: =E128*F128 -> 415.75
A129: 127 | B129: Alabama | C129: 2011-05-24 | D129: Headlamp | E129: 39.99 | F129: 3 | G129: =E129*F129 -> 119.97
A130: 128 | B130: Georgia | C130: 2011-05-01 | D130: Bike Helmet | E130: 99 | F130: 1 | G130: =E130*F130 -> 99
A131: 129 | B131: Georgia | C131: 2011-04-30 | D131: Bike Helmet | E131: 99 | F131: 5 | G131: =E131*F131 -> 495
A132: 130 | B132: Alabama | C132: 2011-05-20 | D132: Headlamp | E132: 39.99 | F132: 1 | G132: =E132*F132 -> 39.99
A133: 131 | B133: Georgia | C133: 2011-05-04 | D133: Headlamp | E133: 24.99 | F133: 1 | G133: =E133*F133 -> 24.99
A134: 132 | B134: Florida | C134: 2011-04-30 | D134: Bike Helmet | E134: 99 | F134: 1 | G134: =E134*F134 -> 99
A135: 133 | B135: Florida | C135: 2011-05-19 | D135: Backpack | E135: 220.3 | F135: 2 | G135: =E135*F135 -> 440.6
A136: 134 | B136: Florida | C136: 2011-05-14 | D136: Bike Helmet | E136: 99 | F136: 2 | G136: =E136*F136 -> 198
A137: 135 | B137: Alabama | C137: 2011-05-04 | D137: Bike Helmet | E137: 99 | F137: 4 | G137: =E137*F137 -> 396
A138: 136 | B138: Alabama | C138: 2011-05-27 | D138: Bike Rack | E138: 269 | F138: 5 | G138: =E138*F138 -> 1345
A139: 137 | B139: Florida | C139: 2011-05-19 | D139: Bike Rack | E139: 269 | F139: 2 | G139: =E139*F139 -> 538
A140: 138 | B140: Alabama | C140: 2011-05-29 | D140: Bicycle | E140: 415.75 | F140: 2 | G140: =E140*F140 -> 831.5
A141: 139 | B141: Alabama | C141: 2011-05-22 | D141: Bike Helmet | E141: 99 | F141: 5 | G141: =E141*F141 -> 495
A142: 140 | B142: Florida | C142: 2011-05-24 | D142: Backpack | E142: 220.3 | F142: 2 | G142: =E142*F142 -> 440.6
A143: 141 | B143: Georgia | C143: 2011-05-02 | D143: Headlamp | E143: 24.99 | F143: 2 | G143: =E143*F143 -> 49.98
A144: 142 | B144: Georgia | C144: 2011-05-08 | D144: Bike Rack | E144: 269 | F144: 5 | G144: =E144*F144 -> 1345
A145: 143 | B145: Georgia | C145: 2011-05-17 | D145: Bicycle | E145: 415.75 | F145: 2 | G145: =E145*F145 -> 831.5
A146: 144 | B146: Georgia | C146: 2011-05-04 | D146: Headlamp | E146: 24.99 | F146: 2 | G146: =E146*F146 -> 49.98
A147: 145 | B147: Florida | C147: 2011-05-02 | D147: Bicycle | E147: 415.75 | F147: 1 | G147: =E147*F147 -> 415.75
A148: 146 | B148: Alabama | C148: 2011-05-30 | D148: Bike Helmet | E148: 99 | F148: 1 | G148: =E148*F148 -> 99
A149: 147 | B149: Florida | C149: 2011-05-21 | D149: Backpack | E149: 220.3 | F149: 1 | G149: =E149*F149 -> 220.3
A150: 148 | B150: Georgia | C150: 2011-05-01 | D150: Backpack | E150: 98.77 | F150: 2 | G150: =E150*F150 -> 197.54
A151: 149 | B151: Alabama | C151: 2011-05-15 | D151: Headlamp | E151: 24.99 | F151: 3 | G151: =E151*F151 -> 74.97
A152: 150 | B152: Florida | C152: 2011-05-29 | D152: Bicycle | E152: 415.75 | F152: 1 | G152: =E152*F152 -> 415.75
A153: 151 | B153: Georgia | C153: 2011-05-28 | D153: Bike Rack | E153: 269 | F153: 6 | G153: =E153*F153 -> 1614
A154: 152 | B154: Alabama | C154: 2011-05-03 | D154: Headlamp | E154: 24.99 | F154: 4 | G154: =E154*F154 -> 99.96
A155: 153 | B155: Alabama | C155: 2011-05-26 | D155: Bike Helmet | E155: 99 | F155: 2 | G155: =E155*F155 -> 198
A156: 154 | B156: Florida | C156: 2011-05-22 | D156: Headlamp | E156: 24.99 | F156: 3 | G156: =E156*F156 -> 74.97
A157: 155 | B157: Georgia | C157: 2011-05-10 | D157: Bike Helmet | E157: 99 | F157: 5 | G157: =E157*F157 -> 495
A158: 156 | B158: Georgia | C158: 2011-05-03 | D158: Bike Helmet | E158: 99 | F158: 3 | G158: =E158*F158 -> 297
A159: 157 | B159: Georgia | C159: 2011-05-03 | D159: Backpack | E159: 98.77 | F159: 1 | G159: =E159*F159 -> 98.77
A160: 158 | B160: Alabama | C160: 2011-05-20 | D160: Bike Rack | E160: 269 | F160: 4 | G160: =E160*F160 -> 1076
A161: 159 | B161: Georgia | C161: 2011-05-13 | D161: Bicycle | E161: 560.25 | F161: 2 | G161: =E161*F161 -> 1120.5
A162: 160 | B162: Georgia | C162: 2011-05-27 | D162: Bicycle | E162: 560.25 | F162: 2 | G162: =E162*F162 -> 1120.5
A163: 161 | B163: Florida | C163: 2011-05-10 | D163: Bike Helmet | E163: 99 | F163: 4 | G163: =E163*F163 -> 396
A164: 162 | B164: Alabama | C164: 2011-05-08 | D164: Backpack | E164: 220.3 | F164: 2 | G164: =E164*F164 -> 440.6
A165: 163 | B165: Georgia | C165: 2011-05-03 | D165: Bicycle | E165: 560.25 | F165: 2 | G165: =E165*F165 -> 1120.5
A166: 164 | B166: Alabama | C166: 2011-05-08 | D166: Bicycle | E166: 560.25 | F166: 2 | G166: =E166*F166 -> 1120.5
A167: 165 | B167: Georgia | C167: 2011-05-20 | D167: Headlamp | E167: 24.99 | F167: 2 | G167: =E167*F167 -> 49.98
A168: 166 | B168: Alabama | C168: 2011-05-29 | D168: Backpack | E168: 220.3 | F168: 2 | G168: =E168*F168 -> 440.6
A169: 167 | B169: Georgia | C169: 2011-05-19 | D169: Bicycle | E169: 560.25 | F169: 2 | G169: =E169*F169 -> 1120.5
A170: 168 | B170: Georgia | C170: 2011-05-27 | D170: Bike Rack | E170: 269 | F170: 2 | G170: =E170*F170 -> 538
A171: 169 | B171: Alabama | C171: 2011-05-20 | D171: Bike Helmet | E171: 99 | F171: 2 | G171: =E171*F171 -> 198
A172: 170 | B172: Florida | C172: 2011-05-01 | D172: Bike Helmet | E172: 99 | F172: 3 | G172: =E172*F172 -> 297
A173: 171 | B173: Alabama | C173: 2011-05-10 | D173: Bicycle | E173: 560.25 | F173: 1 | G173: =E173*F173 -> 560.25
A174: 172 | B174: Georgia | C174: 2011-05-30 | D174: Headlamp | E174: 24.99 | F174: 4 | G174: =E174*F174 -> 99.96
A175: 173 | B175: Georgia | C175: 2011-05-18 | D175: Bicycle | E175: 560.25 | F175: 2 | G175: =E175*F175 -> 1120.5
A176: 174 | B176: Georgia | C176: 2011-05-15 | D176: Bike Helmet | E176: 99 | F176: 5 | G176: =E176*F176 -> 495
A177: 175 | B177: Alabama | C177: 2011-05-08 | D177: Bike Helmet | E177: 99 | F177: 4 | G177: =E177*F177 -> 396
A178: 176 | B178: Alabama | C178: 2011-05-17 | D178: Bike Helmet | E178: 99 | F178: 3 | G178: =E178*F178 -> 297
A179: 177 | B179: Alabama | C179: 2011-05-25 | D179: Bike Rack | E179: 269 | F179: 1 | G179: =E179*F179 -> 269
A180: 178 | B180: Florida | C180: 2011-05-19 | D180: Bike Rack | E180: 269 | F180: 1 | G180: =E180*F180 -> 269
A181: 179 | B181: Florida | C181: 2011-05-05 | D181: Bicycle | E181: 560.25 | F181: 2 | G181: =E181*F181 -> 1120.5
A182: 180 | B182: Alabama | C182: 2011-05-21 | D182: Bicycle | E182: 560.25 | F182: 2 | G182: =E182*F182 -> 1120.5
A183: 181 | B183: Alabama | C183: 2011-05-30 | D183: Bike Rack | E183: 269 | F183: 6 | G183: =E183*F183 -> 1614
A184: 182 | B184: Georgia | C184: 2011-05-16 | D184: Bike Helmet | E184: 99 | F184: 4 | G184: =E184*F184 -> 396
A185: 183 | B185: Florida | C185: 2011-05-21 | D185: Headlamp | E185: 24.99 | F185: 4 | G185: =E185*F185 -> 99.96
A186: 184 | B186: Alabama | C186: 2011-05-07 | D186: Bicycle | E186: 560.25 | F186: 1 | G186: =E186*F186 -> 560.25
A187: 185 | B187: Alabama | C187: 2011-05-05 | D187: Bicycle | E187: 560.25 | F187: 2 | G187: =E187*F187 -> 1120.5
A188: 186 | B188: Florida | C188: 2011-05-07 | D188: Bike Helmet | E188: 99 | F188: 4 | G188: =E188*F188 -> 396
A189: 187 | B189: Georgia | C189: 2011-05-04 | D189: Headlamp | E189: 24.99 | F189: 3 | G189: =E189*F189 -> 74.97
A190: 188 | B190: Alabama | C190: 2011-05-26 | D190: Headlamp | E190: 24.99 | F190: 2 | G190: =E190*F190 -> 49.98
A191: 189 | B191: Florida | C191: 2011-05-02 | D191: Headlamp | E191: 24.99 | F191: 2 | G191: =E191*F191 -> 49.98
A192: 190 | B192: Georgia | C192: 2011-05-03 | D192: Bike Helmet | E192: 99 | F192: 3 | G192: =E192*F192 -> 297
A193: 191 | B193: Florida | C193: 2011-05-07 | D193: Bicycle | E193: 560.25 | F193: 1 | G193: =E193*F193 -> 560.25
A194: 192 | B194: Georgia | C194: 2011-05-25 | D194: Bicycle | E194: 560.25 | F194: 2 | G194: =E194*F194 -> 1120.5
A195: 193 | B195: Florida | C195: 2011-05-01 | D195: Bicycle | E195: 560.25 | F195: 2 | G195: =E195*F195 -> 1120.5
A196: 194 | B196: Alabama | C196: 2011-05-13 | D196: Bicycle | E196: 560.25 | F196: 2 | G196: =E196*F196 -> 1120.5
A197: 195 | B197: Florida | C197: 2011-05-26 | D197: Headlamp | E197: 24.99 | F197: 4 | G197: =E197*F197 -> 99.96
A198: 196 | B198: Florida | C198: 2011-05-17 | D198: Headlamp | E198: 24.99 | F198: 3 | G198: =E198*F198 -> 74.97
A199: 197 | B199: Georgia | C199: 2011-05-18 | D199: Bike Helmet | E199: 99 | F199: 2 | G199: =E199*F199 -> 198
A200: 198 | B200: Florida | C200: 2011-05-27 | D200: Bike Rack | E200: 269 | F200: 4 | G200: =E200*F200 -> 1076
... 590 more rows
